Workbook

Sheet 여수시
A1: 여수시 자동차 등록 현황
A2: 작성기준일 : 2017.12.31. 현재 | I2: (단위 : 대)
A3: 구분 | C3: 자 동 차 | H3: 이 륜 자동차 | I3: 비고
C4: 계 | D4: 승용차 | E4: 승합차 | F4: 화물차 | G4: 특수차
A5: 2010년말 | B5: 여수 | C5: 102,062 | D5: 74,872 | E5: 6,332 | F5: 20,132 | G5: 726 | H5: 8,279
B6: 전남 | C6: 713,668 | D6: 464,843 | E6: 44,157 | F6: 199,828 | G6: 4,840 | H6: 101,313
B7: 전국 | C7: 17,941,356 | D7: 13,631,769 | E7: 1,049,725 | F7: 3,203,808 | G7: 56,054 | H7: 1,825,474
A8: 2011년말 | B8: 여수 | C8: 105,977 | D8: 78,345 | E8: 6,225 | F8: 20,586 | G8: 821 | H8: 8,271
B9: 전남 | C9: 740,903 | D9: 489,318 | E9: 43,089 | F9: 203,434 | G9: 5,062 | H9: 101,638
B10: 전국 | C10: 18,437,373 | D10: 14,136,478 | E10: 1,015,391 | F10: 3,226,421 | G10: 59,083 | H10: 1,828,312
A11: 2012년말 | B11: 여수 | C11: 108,847 | D11: 81,126 | E11: 6,049 | F11: 20,808 | G11: 864 | H11: 9,056
B12: 전남 | C12: 766,704 | D12: 512,127 | E12: 42,206 | F12: 207,028 | G12: 5,343 | H12: 117,755
B13: 전국 | C13: 18,870,533 | D13: 14,577,193 | E13: 986,833 | F13: 3,243,924 | G13: 62,583 | H13: 2,093,466
A14: 2013년말 | B14: 여수 | C14: =SUM(D14:G14) -> 112,282 | D14: 84,295 | E14: 5,872 | F14: 21,192 | G14: 923 | H14: 9,057
B15: 전남 | C15: =SUM(D15:G15) -> 799,385 | D15: 539,848 | E15: 41,947 | F15: 212,062 | G15: 5,528 | H15: 118,311
B16: 전국 | C16: =SUM(D16:G16) -> 19,400,864 | D16: 15,078,354 | E16: 970,805 | F16: 3,285,707 | G16: 65,998 | H16: 2,117,239
A17: 2014년말 | B17: 여수 | C17: 115,955 | D17: 87,581 | E17: 5,725 | F17: 21,700 | G17: 949 | H17: 9,199
B18: 전남 | C18: 841,881 | D18: 576,251 | E18: 41,841 | F18: 218,029 | G18: 5,760 | H18: 118,110
B19: 전국 | C19: 20,117,955 | D19: 15,747,171 | E19: 947,012 | F19: 3,353,683 | G19: 70,089 | H19: 2,136,085
A20: 2015년말 | B20: 여수 | C20: =SUM(D20:G20) -> 120,641 | D20: 91,824 | E20: 5,509 | F20: 22,332 | G20: 976 | H20: 9,199
B21: 전남 | C21: 897,655 | D21: 625,780 | E21: 41,950 | F21: 224,021 | G21: 5,904 | H21: 118,432
B22: 전국 | C22: 20,989,885 | D22: 16,561,665 | E22: 920,320 | F22: 3,432,937 | G22: 74,963 | H22: 2,161,774
A23: 2016년말 | B23: 여수 | C23: =SUM(D23:G23) -> 124,848 | D23: 95,746 | E23: 5,276 | F23: 22,838 | G23: 988 | H23: 9,191
B24: 전남 | C24: 952,004 | D24: 673,511 | E24: 42,430 | F24: 229,857 | G24: 6,206 | H24: 118,236
B25: 전국 | C25: 21,803,351 | D25: 17,338,160 | E25: 892,539 | F25: 3,492,173 | G25: 80,479 | H25: 2,180,688
A26: 2017. 1월말 | B26: 여수 | C26: 125,497 | D26: 96,297 | E26: 5,265 | F26: 22,941 | G26: 994 | H26: 9,196
B27: 전남 | C27: 956,413 | D27: 677,484 | E27: 42,375 | F27: 230,313 | G27: 6,241 | H27: 118,205
B28: 전국 | C28: 21,897,227 | D28: 17,425,087 | E28: 890,757 | F28: 3,500,374 | G28: 81,009 | H28: 2,179,064
A29: 2017. 2월말 | B29: 여수 | C29: =SUM(D29:G29) -> 125,716 | D29: 96,460 | E29: 5,218 | F29: 23,033 | G29: 1,005 | H29: 9,200
B30: 전남 | C30: 958,692 | D30: 679,608 | E30: 42,310 | F30: 230,505 | G30: 6,269 | H30: 118,151
B31: 전국 | C31: 21,934,299 | D31: 17,462,707 | E31: 888,244 | F31: 3,501,817 | G31: 81,531 | H31: 2,178,880
A32: 2017. 3월말 | B32: 여수 | C32: =SUM(D32:G32) -> 126,039 | D32: 96,774 | E32: 5,203 | F32: 23,061 | G32: 1,001 | H32: 9,195
B33: 전남 | C33: 962,623 | D33: 683,154 | E33: 42,260 | F33: 230,911 | G33: 6,298 | H33: 118,168
B34: 전국 | C34: 21,994,213 | D34: 17,521,259 | E34: 885,932 | F34: 3,504,927 | G34: 82,095 | H34: 2,181,999
A35: 2017. 4월말 | B35: 여수 | C35: =SUM(D35:G35) -> 126,291 | D35: 97,004 | E35: 5,193 | F35: 23,082 | G35: 1,012 | H35: 9,207
B36: 전남 | C36: 967,487 | D36: 687,390 | E36: 42,319 | F36: 231,429 | G36: 6,349 | H36: 118,222
B37: 전국 | C37: 22,061,893 | D37: 17,584,482 | E37: 884,509 | F37: 3,510,343 | G37: 82,559 | H37: 2,185,561
A38: 2017. 5월말 | B38: 여수 | C38: =SUM(D38:G38) -> 126,635 | D38: 97,358 | E38: 5,184 | F38: 23,072 | G38: 1,021 | H38: 9,212
B39: 전남 | C39: 971,021 | D39: 690,434 | E39: 42,283 | F39: 231,941 | G39: 6,363 | H39: 118,228
B40: 전국 | C40: 22,118,921 | D40: 17,639,514 | E40: 882,028 | F40: 3,514,369 | G40: 83,010 | H40: 2,189,018
A41: 2017. 6월말 | B41: 여수 | C41: =SUM(D41:G41) -> 126,889 | D41: 97,561 | E41: 5,173 | F41: 23,126 | G41: 1,029 | H41: 9,231
B42: 전남 | C42: 974,601 | D42: 693,673 | E42: 42,221 | F42: 232,317 | G42: 6,390 | H42: 118,232
B43: 전국 | C43: 22,188,565 | D43: 17,706,317 | E43: 880,044 | F43: 3,518,684 | G43: 83,520 | H43: 2,192,507
A44: 2017. 7월말 | B44: 여수 | C44: =SUM(D44:G44) -> 127,293 | D44: 97,900 | E44: 5,186 | F44: 23,182 | G44: 1,025 | H44: 9,255
B45: 전남 | C45: 978,484 | D45: 697,291 | E45: 42,179 | F45: 232,618 | G45: 6,396 | H45: 118,220
B46: 전국 | C46: 22,254,598 | D46: 17,767,364 | E46: 878,445 | F46: 3,524,821 | G46: 83,968 | H46: 2,194,967
A47: 2017. 8월말 | B47: 여수 | C47: =SUM(D47:G47) -> 127,466 | D47: 98,076 | E47: 5,155 | F47: 23,206 | G47: 1,029 | H47: 9,270
B48: 전남 | C48: 981,056 | D48: 699,717 | E48: 42,036 | F48: 232,904 | G48: 6,399 | H48: 118,306
B49: 전국 | C49: 22,302,391 | D49: 17,815,522 | E49: 875,856 | F49: 3,526,721 | G49: 84,292 | H49: 2,198,295
A50: 2017. 9월말 | B50: 여수 | C50: =SUM(D50:G50) -> 127,807 | D50: 98,384 | E50: 5,157 | F50: 23,229 | G50: 1,037 | H50: 9,287
B51: 전남 | C51: 984,116 | D51: 702,312 | E51: 42,054 | F51: 233,356 | G51: 6,394 | H51: 118,365
B52: 전국 | C52: 22,375,311 | D52: 17,884,246 | E52: 874,143 | F52: 3,532,182 | G52: 84,740 | H52: 2,201,756
A53: 2017.10월말 | B53: 여수 | C53: =SUM(D53:G53) -> 128,054 | D53: 98,593 | E53: 5,144 | F53: 23,277 | G53: 1,040 | H53: 9,276
B54: 전남 | C54: 986,056 | D54: 703,966 | E54: 42,007 | F54: 233,694 | G54: 6,389 | H54: 118,295
B55: 전국 | C55: 22,417,307 | D55: 17,925,433 | E55: 872,091 | F55: 3,534,767 | G55: 85,016 | H55: 2,201,319
A56: 2017.11월말 | B56: 여수 | C56: =SUM(D56:G56) -> 128,396 | D56: 98,889 | E56: 5,119 | F56: 23,341 | G56: 1,047 | H56: 9,283
B57: 전남 | C57: 990,525 | D57: 707,954 | E57: 42,031 | F57: 234,081 | G57: 6,459 | H57: 118,289
B58: 전국 | C58: 22,485,362 | D58: 17,990,423 | E58: 870,108 | F58: 3,539,365 | G58: 85,466 | H58: 2,199,139
A59: 2017.12월말 | B59: 여수 | C59: =SUM(D59:G59) -> 128,348 | D59: 98,873 | E59: 5,094 | F59: 23,334 | G59: 1,047 | H59: 9,270
B60: 전남 | C60: 994,318 | D60: 711,720 | E60: 41,979 | F60: 234,157 | G60: 6,462 | H60: 118,319
B61: 전국 | C61: 22,528,295 | D61: 18,034,540 | E61: 867,522 | F61: 3,540,323 | G61: 85,910 | H61: 2,196,475
